bitfinex/quotes_ETHUSD_20241108
["timestamp","ask_amount","ask_price","bid_price","bid_amount"]
[1731024679701,0.2868,2936.9,2936.0,0.37073869]
[1731024680212,0.2868,2936.9,2935.9,0.2868]
[1731024680357,0.08514086,2936.8,2935.9,0.2868]
[1731024680755,0.08514086,2936.8,2934.6,0.7916]
[1731024680756,0.34700561,2936.7,2934.6,0.7916]
[1731024680995,0.37195476,2936.6,2935.5,0.2868]
[1731024681425,0.05020561,2936.5,2935.6,0.06811871]
[1731024681584,0.05020561,2936.5,2935.6,0.4388574]
[1731024681789,0.2868,2936.6,2935.6,0.37073869]
[1731024682032,0.2868,2936.6,2935.5,0.2868]
[1731024682199,0.08515221,2936.5,2935.1,0.37073869]
[1731024682394,0.08515221,2936.5,2935.4,0.2868]
[1731024682810,0.2868,2936.4,2935.4,0.2868]
[1731024683093,0.2868,2935.9,2934.7,0.2868]
[1731024683287,0.2868,2935.7,2934.7,0.2868]
[1731024683493,0.2868,2935.7,2934.8,0.43887367]
[1731024683934,0.2868,2935.7,2934.8,0.37073869]
[1731024683935,0.05009241,2935.6,2934.8,0.37073869]
[1731024684441,0.05009241,2935.6,2934.9,0.37360807]
[1731024684592,0.2868,2935.7,2934.9,0.37360807]
[1731024684944,0.2868,2935.7,2934.9,0.74434676]
[1731024685125,0.2868,2936.6,2935.0,0.37073869]
[1731024685425,0.2868,2936.6,2935.1,0.06811822]
[1731024685426,0.13501375,2936.5,2935.1,0.06811822]
[1731024685626,0.2868,2936.6,2935.3,3.0]
[1731024685828,0.2868,2936.6,2935.4,0.42860807]
[1731024686243,0.2868,2936.6,2935.3,0.37073869]
[1731024686741,0.2868,2937.2,2935.3,0.37073869]
[1731024686898,0.2868,2937.2,2935.4,0.42860807]
[1731024686899,0.08513774,2937.1,2935.4,0.42860807]
[1731024687102,0.13511985,2937.1,2935.5,0.39823869]
[1731024687412,0.2868,2937.2,2935.7,0.7704]
[1731024687601,0.2868,2937.2,2936.1,3.0]
[1731024688101,0.2868,2937.8,2936.1,3.39823869]
[1731024688296,0.2868,2937.8,2936.3,0.7704]
[1731024688502,0.2868,2937.8,2936.6,3.0]
[1731024688733,0.2868,2937.8,2936.7,1.01564625]
[1731024688918,0.2968,2937.7,2936.2,1.354195]
[1731024689134,0.2968,2937.7,2935.3,2.8016925]
[1731024689135,0.2868,2937.5,2935.7,1.01564625]
[1731024689357,0.2868,2937.5,2935.5,0.38057202]
[1731024689358,0.2868,2937.3,2935.5,0.38057202]
[1731024689564,0.2868,2937.1,2935.5,0.38057202]
[1731024689715,0.2868,2937.1,2935.6,0.52171838]
[1731024689716,0.08513789,2937.0,2935.6,0.52171838]
[1731024689921,0.08513789,2937.0,2935.7,0.40723869]
[1731024690364,0.2868,2936.9,2935.7,0.40723869]
[1731024690531,0.08514031,2936.8,2935.7,0.40723869]
[1731024690936,0.08514031,2936.8,2935.8,0.0681122]
[1731024691126,0.2868,2936.9,2935.9,0.40723869]
[1731024692062,0.2868,2936.9,2935.3,0.40723869]
[1731024692223,0.2868,2936.7,2935.3,0.40723869]
[1731024692424,0.2868,2936.5,2934.9,0.40723869]
[1731024692622,0.2868,2936.5,2935.5,4.35115496]
[1731024692818,0.2868,2937.4,2936.0,4.35115496]
[1731024693059,0.2868,2937.4,2936.1,0.88872357]
[1731024693258,0.2868,2937.4,2936.1,0.4351155]
[1731024693757,0.2868,2937.4,2936.1,3.4351155]
[1731024694127,0.2868,2937.4,2936.2,0.6957718]
[1731024694431,0.2868,2937.2,2936.2,0.48433424]
[1731024694936,0.2868,2937.0,2936.2,0.24216373]
[1731024695138,0.2868,2936.8,2936.2,0.24216373]
[1731024695350,0.08514038,2936.7,2936.2,0.24216373]
[1731024695526,0.2868,2936.6,2936.2,0.24216373]
[1731024695725,0.08515411,2936.5,2936.2,0.24216373]
[1731024696021,0.2868,2936.6,2936.2,0.24216373]
[1731024696293,0.04656379,2936.5,2935.1,0.38635952]
[1731024696691,0.08514192,2936.5,2935.0,0.7744]
[1731024696992,0.08514192,2936.5,2935.1,0.45360807]
[1731024697194,0.2868,2936.4,2935.1,0.45360807]
[1731024697486,0.08516395,2936.3,2935.2,0.06813116]
[1731024697703,0.08516395,2936.3,2935.2,0.52173923]
[1731024697862,0.2868,2936.4,2935.3,0.45360807]
[1731024698372,0.2868,2936.4,2935.0,3.0]
[1731024698545,0.08516104,2936.3,2935.0,3.45360807]
[1731024698749,0.08516104,2936.3,2935.1,0.45360807]
[1731024698993,0.08516104,2936.3,2935.0,3.0]
[1731024699366,0.08516104,2936.3,2935.1,0.41843549]
[1731024699566,0.08515439,2936.2,2935.2,0.40996706]
[1731024699788,0.2868,2936.4,2935.2,0.34184355]
[1731024699999,0.0851547,2936.3,2935.2,0.34184355]
[1731024700902,0.0851547,2936.3,2935.3,0.06812886]
[1731024701062,0.2868,2936.4,2935.2,0.34184355]
[1731024701263,0.2868,2936.4,2935.3,0.41843549]
[1731024702167,0.2868,2936.4,2935.2,0.34184355]
[1731024703379,0.2868,2936.4,2935.3,0.06811813]
[1731024703755,0.2868,2936.4,2935.2,0.34184355]
[1731024703923,0.2868,2936.4,2935.3,0.0681234]
[1731024704077,0.2868,2936.4,2935.2,0.65485807]
[1731024704778,0.2868,2936.4,2935.3,0.41843549]
[1731024705617,0.2868,2936.4,2935.4,4.35115496]
[1731024705919,0.2868,2936.4,2935.5,3.41843549]
[1731024706080,0.2868,2936.4,2935.6,0.06810764]
[1731024706412,0.2868,2936.4,2935.7,0.41843549]
[1731024706718,0.2868,2936.4,2935.8,0.0681077]
[1731024707022,0.2868,2936.4,2935.9,0.41843549]
[1731024707314,0.2868,2937.2,2935.9,4.76959045]
[1731024707543,0.2868,2937.2,2936.0,3.0]
[1731024710205,0.2868,2936.4,2935.1,0.4351155]
[1731024710398,0.2868,2936.2,2935.1,0.4351155]
[1731024710625,0.2868,2936.0,2935.1,0.4351155]
[1731024710906,0.2868,2936.0,2935.2,0.06812868]
[1731024711217,0.2868,2936.0,2935.4,4.35115496]
[1731024711415,0.2868,2936.0,2935.5,3.35099617]
[1731024711742,0.2868,2937.2,2936.0,3.0]
[1731024713144,0.2868,2937.2,2936.1,0.06809949]
[1731024713304,0.2868,2937.2,2936.0,3.0]
[1731024713499,0.2868,2937.2,2936.1,0.4351155]
[1731024714244,0.2868,2937.2,2936.5,3.0]
[1731024716001,0.2868,2937.2,2936.6,0.06809022]
[1731024716254,0.05108771,2937.3,2936.5,3.0]
[1731024716443,0.2868,2937.8,2936.5,3.0]
[1731024716750,0.2868,2937.8,2937.0,3.0]
[1731024719308,0.2868,2937.8,2936.6,4.82820999]
[1731024719508,0.2868,2937.8,2936.8,1.01564625]
[1731024719708,0.2868,2937.8,2936.7,4.01564625]
[1731024719940,0.2868,2937.8,2936.8,1.45076175]
[1731024720144,0.2868,2937.8,2936.9,1.08372501]
[1731024720329,0.2868,2937.8,2936.9,3.06807876]
[1731024720645,0.2868,2937.8,2936.9,1.08372501]
[1731024720807,0.2868,2937.8,2937.0,0.35099617]
[1731024721008,0.2868,2937.8,2937.1,0.06807879]
[1731024721209,0.2868,2937.8,2937.0,0.35099617]
[1731024721439,0.2868,2937.8,2937.1,0.0680788]
[1731024721750,0.2868,2937.8,2937.1,4.01564625]
[1731024721911,0.2868,2937.8,2937.2,0.4351155]
[1731024722413,0.2868,2937.8,2937.2,0.4331155]
[1731024726317,0.2868,2937.8,2937.0,0.43240091]
[1731024726521,0.2868,2937.8,2936.8,1.35987845]
[1731024726762,0.2868,2937.6,2936.8,1.79227936]
[1731024726931,0.2868,2937.6,2936.9,0.2473206]
[1731024727134,0.2868,2937.6,2936.9,0.61162885]
[1731024727445,0.2868,2937.6,2936.9,4.96278381]
[1731024727657,0.08510424,2938.7,2936.9,5.98265111]
[1731024727957,0.2868,2938.6,2937.5,1.01933761]
[1731024728159,0.2868,2938.6,2937.5,3.0]
[1731024728326,0.2868,2938.6,2937.1,3.0]
[1731024728529,0.2868,2938.6,2937.5,3.43240091]
[1731024729338,0.2868,2938.6,2937.5,0.43240091]
[1731024730232,0.01,2938.5,2937.2,1.01859095]
[1731024730569,0.2868,2938.4,2937.2,1.01859095]
[1731024730766,0.2868,2938.2,2937.2,1.01859095]
[1731024731172,0.2868,2938.2,2937.3,0.43240091]
[1731024732871,0.2868,2938.2,2937.5,3.0]
[1731024733076,0.2868,2938.6,2937.6,0.06806872]
[1731024733247,0.2868,2938.6,2937.7,0.35004696]
[1731024733574,0.2868,2938.6,2937.7,0.82569787]
[1731024735581,0.2868,2938.6,2937.7,3.82569787]
[1731024736072,0.2868,2938.6,2937.8,0.06806872]
[1731024736291,0.2868,2938.6,2937.9,0.86502757]
[1731024736637,0.2868,2939.0,2938.6,3.0]
[1731024736885,0.2868,2939.7,2939.0,3.0]
[1731024737174,3.89567851,2940.4,2939.4,3.0]
[1731024737175,0.2868,2940.1,2939.4,3.0]
[1731024737380,0.10546294,2940.3,2939.8,3.0]
[1731024737381,0.020406,2940.3,2939.8,3.0]
[1731024737592,0.03985911,2939.9,2939.8,3.0]
[1731024737776,0.020406,2940.3,2939.9,0.91910358]
[1731024738190,0.020406,2940.3,2940.0,0.7593]
[1731024738394,0.020406,2940.3,2940.2,6.99809296]
[1731024738560,0.020406,2940.3,2940.2,8.97611975]
[1731024738867,2.12463813,2940.7,2940.3,3.47999019]
[1731024739199,2.12463813,2940.7,2940.6,6.99809296]
[1731024739492,0.576726,2940.8,2940.6,3.50872387]
[1731024739797,0.576726,2940.8,2940.6,0.50872387]
[1731024739985,0.576726,2940.8,2940.7,2.45293446]
[1731024740166,0.2868,2941.5,2940.7,0.50035157]
[1731024740368,0.2868,2941.5,2941.3,1.34528663]
[1731024740567,0.2868,2941.5,2941.4,1.34528663]
[1731024740799,0.001,2942.0,2941.4,1.34528663]
[1731024740800,0.2868,2941.9,2941.4,1.34528663]
[1731024740996,0.2868,2941.9,2941.5,1.00866722]
[1731024741342,0.2868,2941.9,2941.7,1.00866722]
[1731024742091,0.2868,2941.9,2941.8,1.00866722]
[1731024742501,0.001,2942.0,2941.7,1.00866722]
[1731024742697,0.001,2942.0,2941.9,1.00866722]
[1731024742862,0.001,2942.0,2941.8,1.34528663]
[1731024743263,0.001,2942.0,2941.9,1.34528663]
[1731024743464,0.001,2942.0,2941.8,1.68160829]
[1731024743764,0.001,2942.0,2941.9,1.33932191]
[1731024744083,0.001,2942.0,2941.9,1.68160829]
[1731024744282,0.001,2942.0,2941.8,1.68160829]
[1731024744486,0.001,2942.0,2941.9,1.33821315]
[1731024744796,0.001,2942.0,2941.8,1.67276644]
[1731024744797,0.001,2942.0,2941.8,0.55505007]
[1731024744996,0.001,2942.0,2941.9,1.67270184]
[1731024745210,0.001,2942.0,2941.8,1.67120906]
[1731024745415,0.001,2942.0,2941.9,1.67120906]
[1731024746104,0.001,2942.0,2941.7,2.00731973]
[1731024746487,0.001,2942.0,2941.9,2.00731973]
[1731024746791,0.001,2942.0,2941.9,0.55505007]
[1731024747199,0.001,2942.0,2941.9,6.71289279]
[1731024747377,0.001,2942.0,2941.9,0.55505007]
[1731024748166,0.001,2942.0,2941.9,2.22319696]
[1731024748382,0.001,2942.0,2941.9,0.55505007]
[1731024749180,0.001,2942.0,2941.9,2.22222979]
[1731024749385,0.001,2942.0,2941.9,2.22226297]
[1731024750187,0.001,2942.0,2941.9,0.55505007]
[1731024750415,0.001,2942.0,2941.9,1.88808452]
[1731024750594,0.001,2942.0,2941.9,1.88826593]
[1731024751122,0.001,2942.0,2941.9,0.55505007]
[1731024751274,0.001,2942.0,2941.9,1.88826593]
[1731024752025,0.001,2942.0,2941.9,0.55505007]
[1731024752026,0.08597881,2942.0,2941.9,0.55505007]
[1731024752196,0.08597881,2942.0,2941.4,0.99981524]
[1731024752400,0.08597881,2942.0,2941.3,0.99981524]
[1731024752631,0.2868,2941.9,2941.4,0.52005007]
[1731024752826,0.08499581,2941.8,2941.4,0.52005007]
[1731024753299,0.08499581,2941.8,2941.4,1.07626114]
[1731024753630,0.08499581,2941.8,2941.5,0.55621107]
[1731024753923,0.2868,2941.9,2941.6,0.52005007]
[1731024754228,0.001,2942.0,2941.7,0.99981524]
[1731024754424,0.001,2942.0,2941.8,0.53921674]
[1731024755120,0.2868,2942.6,2941.8,0.53921674]
[1731024755325,0.08498189,2942.4,2941.8,0.38751674]
[1731024755687,0.08498189,2942.4,2941.8,1.38733198]
[1731024755886,0.08498189,2942.4,2941.9,0.52657507]
[1731024756886,0.8368,2942.3,2941.9,0.52657507]
[1731024757094,0.08498637,2942.2,2941.9,0.52657507]
[1731024757292,0.55,2942.0,2941.9,0.52657507]
[1731024757596,0.2868,2943.0,2941.9,6.71127913]
[1731024757914,0.2868,2943.0,2942.2,1.33335308]
[1731024758232,0.01,2943.8,2942.3,0.5514258]
[1731024758433,0.09495336,2943.8,2942.3,0.5514258]
[1731024758590,0.03542727,2943.7,2942.3,0.90654599]
[1731024758793,0.08495335,2943.6,2942.3,1.68847327]
[1731024759022,0.08495335,2943.6,2942.3,1.33335308]
[1731024759236,0.08495335,2943.6,2942.2,1.33335308]
[1731024759419,0.08495335,2943.6,2942.3,1.33335308]
[1731024759602,0.08495335,2943.6,2942.3,1.57403244]
[1731024759925,0.08495507,2943.5,2942.4,3.30864341]
[1731024760128,0.55,2943.8,2942.5,0.24067936]
[1731024760299,0.55,2943.6,2942.6,0.24067936]
[1731024760502,0.08495362,2943.5,2942.7,0.24067936]
[1731024760702,0.08495362,2943.5,2942.8,0.24067936]
[1731024760915,0.08495362,2943.5,2942.9,0.24067936]
[1731024761124,0.08495362,2943.5,2943.0,0.24067936]
[1731024761310,0.08495362,2943.5,2943.1,0.24067936]
[1731024761510,0.08495362,2943.5,2943.2,0.79202108]
[1731024761696,0.03542727,2943.4,2943.3,0.24067936]
[1731024761892,0.03542727,2943.4,2943.3,0.22251105]
[1731024762224,0.09494523,2944.0,2943.3,0.22251105]
[1731024762394,0.09494523,2944.0,2942.9,0.55621107]
[1731024762591,0.09494523,2944.0,2943.0,0.55134172]
[1731024762796,0.03542727,2943.9,2943.0,0.55134172]
[1731024763036,0.08494327,2943.8,2943.0,1.10755279]
[1731024763538,0.08494327,2943.8,2943.2,3.98587496]
[1731024763697,0.01,2944.3,2943.3,1.12366213]
[1731024763698,0.55,2944.2,2943.3,1.12366213]
[1731024763899,0.56,2944.0,2943.3,0.55134172]
[1731024764141,0.55,2943.8,2943.3,0.55134172]
[1731024764427,0.55,2943.6,2943.3,0.55134172]
[1731024764607,0.08494694,2943.5,2943.3,0.55134172]
[1731024764815,0.12065065,2943.5,2943.3,0.55134172]
[1731024765118,0.55,2943.4,2943.0,0.52800839]
[1731024765323,0.08495538,2943.3,2943.0,0.52800839]
[1731024766508,0.01,2944.1,2943.0,0.52800839]
[1731024766509,0.55,2944.0,2943.0,0.52800839]
[1731024766735,0.55,2943.8,2943.0,0.52800839]
[1731024767034,0.55,2943.6,2942.6,1.33348328]
[1731024767234,0.08495581,2943.5,2942.9,0.51634172]
[1731024767614,0.01,2944.0,2942.9,0.51634172]
[1731024767832,0.01,2943.8,2942.9,0.51634172]
[1731024768125,0.01,2943.8,2942.7,0.51634172]
[1731024768126,0.55,2943.7,2942.7,0.51634172]
[1731024768330,0.08495389,2943.6,2942.7,1.04366213]
[1731024768532,0.08495389,2943.6,2942.7,1.86080369]
[1731024768922,0.55,2944.0,2942.7,0.52732041]
[1731024769103,0.55,2943.8,2942.8,1.33348328]
[1731024769303,0.0849473,2943.7,2942.8,1.849825]
[1731024769506,0.0849473,2943.7,2942.9,0.51634172]
[1731024769507,0.55,2943.6,2942.9,0.51634172]
[1731024769703,0.08495178,2943.5,2942.7,4.86080369]
[1731024769911,0.08495178,2943.5,2942.7,5.40283513]
[1731024770108,0.08494987,2943.7,2942.8,1.33348328]
[1731024770344,0.08494987,2943.7,2942.9,1.33348328]
[1731024770549,0.55,2944.2,2943.0,0.54203144]
[1731024770849,0.01,2943.8,2942.9,0.53682608]
[1731024771055,0.55,2943.7,2942.9,1.07885752]
[1731024771239,0.08494764,2943.6,2943.0,0.54203144]
[1731024771555,0.55,2944.5,2943.0,0.54203144]
[1731024771759,0.04761482,2944.4,2943.0,0.54203144]
[1731024771926,0.08142377,2944.4,2943.0,0.54203144]
[1731024772941,4.06729873,2944.4,2943.0,0.54203144]
[1731024773143,4.06729873,2944.4,2942.9,0.53682608]
[1731024773358,4.06729873,2944.4,2942.9,1.07885752]
[1731024773359,0.46172987,2944.3,2942.9,1.07885752]
[1731024773523,0.04761482,2944.2,2943.0,0.54203144]
[1731024773723,0.0814529,2944.2,2943.0,0.54203144]
[1731024773922,0.0814529,2944.2,2943.1,0.24191831]
[1731024774257,0.55,2944.1,2942.9,1.87030936]
[1731024774460,0.04761482,2944.0,2942.9,1.87030936]
[1731024774627,0.04761482,2944.0,2942.9,1.34348328]
[1731024774816,0.03383808,2943.9,2943.0,2.0334612]
[1731024775024,0.03383808,2943.9,2943.1,1.33348328]
[1731024775225,0.55,2944.4,2943.0,1.33348328]
[1731024775425,0.55,2944.2,2943.0,1.33348328]
[1731024775668,0.04761482,2944.1,2943.0,1.33348328]
[1731024775966,0.55,2944.0,2943.1,0.38705233]
[1731024776120,0.55,2943.8,2943.0,0.38705233]
[1731024776325,0.04761482,2943.7,2943.1,0.38705233]
[1731024776577,0.04761482,2943.7,2943.2,0.38705233]
[1731024776773,0.55,2944.3,2943.0,0.38705233]
[1731024776935,0.55,2944.1,2943.1,0.38705233]
[1731024777121,0.55,2943.9,2943.0,0.38705233]
[1731024777327,0.04761482,2943.8,2942.8,1.33348328]
[1731024777628,0.55,2943.7,2942.7,0.38705233]
[1731024777967,0.55,2943.5,2942.6,1.72053561]
[1731024778169,0.04761482,2943.4,2942.8,1.33348328]
[1731024778341,0.04761482,2943.4,2942.9,1.33348328]
[1731024778672,0.55,2944.1,2942.9,1.33348328]
[1731024778838,2.974,2943.9,2942.8,1.33348328]
[1731024779040,0.55,2943.5,2942.4,0.38705233]
[1731024779240,0.55,2943.5,2942.4,1.67771414]
[1731024779443,3.55,2943.5,2942.1,3.69097111]
[1731024779645,0.55,2943.3,2942.3,0.54203144]
[1731024779847,0.03347107,2943.4,2942.6,3.98587496]
[1731024780169,3.98587496,2944.9,2943.2,1.67771414]
[1731024780379,0.41227578,2944.8,2943.2,1.67771414]
[1731024780546,0.44436477,2944.8,2943.2,1.67771414]
[1731024780745,3.98587496,2944.5,2943.1,1.67771414]
[1731024781175,3.98587496,2944.5,2943.3,1.68419098]
[1731024781475,3.98587496,2944.5,2942.4,2.78523083]
[1731024781476,0.03208899,2944.4,2943.2,1.68419098]
[1731024781640,0.43067649,2944.4,2943.1,1.68419098]
[1731024781841,0.43067649,2944.4,2943.0,1.68419098]
[1731024782027,0.55,2944.2,2943.0,1.68419098]
[1731024782372,0.55,2944.2,2943.3,1.68419098]
[1731024782585,0.55,2944.0,2943.5,1.68419098]
[1731024782730,0.55,2944.0,2943.0,2.89989881]
[1731024782731,0.55,2944.0,2943.4,1.68419098]
[1731024782933,0.44165515,2944.3,2943.4,1.68419098]
[1731024782934,0.55,2944.2,2943.4,1.68419098]
[1731024783239,0.55,2944.2,2943.6,1.68419098]
[1731024783240,0.03208899,2943.9,2943.6,1.68419098]
[1731024783474,0.38402427,2944.2,2943.6,1.68419098]
[1731024783761,0.38402427,2944.2,2943.7,1.68419098]
[1731024783937,0.03208899,2944.1,2943.6,1.68419098]
[1731024784352,0.03208899,2944.1,2943.7,1.68419098]
[1731024784871,0.03208899,2944.1,2943.8,1.68419098]
[1731024785067,0.44165515,2944.3,2943.8,1.68419098]
[1731024785267,0.44165515,2944.3,2943.7,1.68419098]
[1731024785571,0.55,2944.1,2943.8,1.68419098]
[1731024785741,0.55,2944.1,2943.8,1.69428933]
[1731024786261,0.55,2944.1,2943.6,1.69428933]
[1731024786761,0.55,2944.1,2943.8,1.69428933]
[1731024787063,0.55,2944.5,2944.0,1.35571698]
[1731024787369,0.0314027,2944.4,2943.7,1.35571698]
[1731024787568,0.55,2944.2,2943.4,1.35571698]
[1731024787738,3.98587496,2944.3,2943.5,1.35571698]
[1731024787739,0.55,2944.0,2943.5,1.35571698]
[1731024788185,0.55,2944.0,2943.6,1.35571698]
[1731024788327,0.0314027,2943.9,2943.6,1.35571698]
[1731024788524,0.55,2944.0,2943.7,1.35571698]
[1731024788730,0.03035595,2943.9,2943.6,1.35571698]
[1731024788960,0.03035595,2943.9,2943.5,1.92190699]
[1731024789273,0.55,2944.0,2943.5,1.92190699]
[1731024789476,0.55,2944.0,2943.5,0.56619001]
[1731024789768,0.55,2944.0,2943.4,1.35571698]
[1731024789929,0.55,2944.0,2943.5,0.56619001]
[1731024790467,3.98587496,2944.7,2943.5,0.56619001]
[1731024790654,0.55,2944.3,2943.5,0.56619001]
[1731024790966,0.55,2944.5,2943.5,0.56619001]
[1731024793033,0.3985875,2944.6,2943.6,0.8029]
[1731024793374,0.1368828,2945.0,2944.0,1.36571698]
[1731024793547,0.1368828,2945.0,2944.1,0.52626582]
[1731024795476,0.1368828,2945.0,2943.6,0.51345352]
[1731024795640,0.55,2944.9,2943.7,0.49293249]
[1731024795831,0.55,2944.9,2943.7,1.00638601]
[1731024796273,3.98587496,2944.5,2942.7,0.38623401]
[1731024796575,3.98587496,2944.5,2942.2,0.01]
[1731024796576,3.55,2944.0,2941.9,0.8129]
[1731024796780,3.55,2944.0,2941.9,0.8229]
[1731024796935,0.55,2943.8,2942.0,0.82267684]
[1731024797751,0.55,2943.8,2942.1,0.01]
[1731024797952,0.55,2943.8,2942.2,4.8185518]
[1731024798257,0.55,2943.8,2942.3,0.01]
[1731024798462,0.55,2943.8,2942.4,0.82267684]
[1731024798998,3.98587496,2943.3,2941.5,1.35571698]
[1731024799151,3.98587496,2943.3,2941.1,3.04804217]
[1731024799152,3.55,2943.2,2941.1,3.04804217]
[1731024799348,0.55,2942.8,2941.1,3.04804217]
[1731024799693,0.55,2942.8,2941.2,0.40447332]
[1731024800352,0.55,2942.8,2941.3,0.41820352]
[1731024800689,0.7535875,2943.1,2941.4,0.40447332]
[1731024800845,0.55,2943.1,2941.4,0.40447332]
[1731024801049,0.55,2943.1,2941.5,0.41820352]
[1731024801441,0.55,2943.1,2941.6,0.40447332]
[1731024803095,0.55,2943.1,2941.6,0.82267684]
[1731024803512,0.55,2943.1,2941.6,0.40447332]
[1731024803666,0.55,2942.7,2940.9,0.01]
[1731024803862,0.55,2942.7,2940.9,0.80961017]
[1731024804062,0.55,2942.5,2941.0,0.79961017]
[1731024804471,0.55,2942.5,2941.1,0.38140665]
[1731024805095,0.55,2942.3,2940.8,0.7988]
[1731024805306,0.55,2942.3,2940.8,1.18020665]
[1731024805605,0.55,2942.3,2940.9,0.38140665]
[1731024806103,0.34535875,2942.5,2941.0,0.43820352]
[1731024806289,3.98587496,2942.8,2941.0,0.79961017]
[1731024806690,3.98587496,2942.8,2941.1,0.38140665]
[1731024807374,3.98587496,2942.8,2941.2,0.01]
[1731024807593,3.98587496,2943.2,2941.5,0.01]
[1731024807805,0.3985875,2943.1,2941.4,0.01]
[1731024808416,0.3985875,2943.1,2942.0,0.779]
[1731024808707,3.98587496,2943.6,2942.0,0.779]
[1731024808954,3.98587496,2943.6,2942.0,0.529]
[1731024808955,0.24,2943.3,2942.0,0.529]
[1731024809607,0.24,2943.3,2942.3,0.01]
[1731024809770,3.98587496,2943.2,2942.0,0.529]
[1731024810119,3.98587496,2942.8,2941.1,0.01]
[1731024810703,0.55,2942.7,2941.1,0.41973999]
[1731024811207,0.55,2942.7,2941.1,0.40973999]
[1731024811502,0.55,2942.5,2941.0,0.41820352]
[1731024811922,0.55,2942.5,2941.2,0.813]
[1731024812271,0.55,2942.5,2941.3,0.40973999]
[1731024812911,0.55,2942.5,2941.3,0.41973999]
[1731024813214,0.4535875,2942.6,2941.4,0.7904]
[1731024813516,0.6625875,2943.1,2942.0,0.7904]
[1731024813689,0.46484625,2943.0,2942.0,0.7904]
[1731024814882,0.46484625,2943.0,2941.4,0.8281]
[1731024815187,0.55,2942.9,2941.7,0.01]
[1731024815398,0.55,2942.9,2941.7,0.44557332]
[1731024815617,0.46484625,2943.0,2941.7,0.44557332]
[1731024815803,0.46484625,2943.0,2941.7,0.43557332]
[1731024816002,0.46484625,2943.0,2941.8,0.788]
[1731024816505,0.05098811,2943.4,2942.6,0.788]
[1731024816648,0.05098811,2943.4,2942.7,0.01]
[1731024816945,0.05098811,2943.4,2942.7,0.46973999]
[1731024818548,0.55,2943.3,2942.6,0.788]
[1731024819421,0.05098811,2943.4,2942.8,0.01]
[1731024821342,0.05098811,2943.4,2942.7,0.45973999]
[1731024821343,0.05098811,2943.4,2942.9,0.01]
[1731024822342,0.55,2943.9,2942.9,0.01]
[1731024822537,0.24,2944.4,2943.1,0.01]
[1731024823250,0.24,2944.4,2943.1,0.49307332]
[1731024823764,0.24,2944.4,2943.0,0.792]
[1731024823765,0.5662078,2944.6,2943.7,0.7743]
[1731024824066,2.7831,2944.8,2943.7,0.7743]
[1731024824436,2.90415584,2944.8,2943.7,0.7743]
[1731024824853,0.55,2944.7,2943.7,0.7743]
[1731024826971,0.12105584,2944.8,2944.0,0.7908]
[1731024827126,0.1368828,2945.0,2944.0,0.7908]
[1731024827629,3.98587496,2944.9,2944.0,0.7908]
[1731024827853,0.41227578,2944.8,2944.0,0.7908]
[1731024828580,0.1368828,2945.0,2944.0,0.7908]
[1731024829167,0.1368828,2945.0,2944.1,0.01]
[1731024829369,0.1368828,2945.0,2944.0,0.7908]
[1731024829987,0.1368828,2945.0,2944.1,0.01]
[1731024830154,0.1368828,2945.0,2944.0,0.7908]
[1731024830353,0.1368828,2945.0,2944.1,0.01]
[1731024830997,0.1368828,2945.0,2943.7,0.8187]
[1731024830998,0.55,2944.7,2943.7,0.8187]
[1731024831210,0.24,2944.8,2943.7,0.8187]
[1731024831361,1.0275875,2944.7,2943.7,0.8187]
[1731024831692,0.4775875,2944.7,2943.7,0.8187]
[1731024831913,3.98587496,2944.5,2943.2,1.6095]
[1731024832057,0.55,2944.0,2943.2,0.8187]
[1731024832464,0.55,2944.0,2943.2,1.3627243]
[1731024833084,0.55,2944.0,2943.3,0.5440243]
[1731024833798,0.55,2944.0,2943.2,0.8187]
[1731024834163,0.55,2944.2,2943.2,0.8187]
[1731024835511,0.41062205,2944.3,2943.2,1.3378568]
[1731024835821,0.4775875,2944.7,2943.7,0.8017]
[1731024836022,0.3768828,2945.0,2943.7,0.8017]
[1731024836373,0.3768828,2945.0,2943.8,0.01]
[1731024837191,0.3768828,2945.0,2943.9,0.01]
[1731024837509,0.55,2944.9,2943.9,0.01]
[1731024837898,0.55,2944.9,2944.0,0.7533]
[1731024839039,0.55,2944.9,2944.0,0.7633]
[1731024839379,0.55,2944.9,2944.0,0.7533]
[1731024840623,0.55,2944.9,2944.0,0.7633]
[1731024840826,0.55,2944.9,2944.0,0.7533]
[1731024841002,0.55,2944.7,2943.7,0.7697]
[1731024841522,0.55,2944.7,2943.4,0.5191568]
[1731024841827,0.24,2944.6,2943.2,0.7697]
[1731024842125,1.0275875,2944.5,2943.6,0.01]
[1731024842295,0.55,2944.5,2943.3,0.5070709]
[1731024842499,0.1368828,2945.0,2943.4,0.8228]
[1731024842713,0.1368828,2945.0,2944.1,0.8228]
[1731024843422,0.1368828,2945.0,2943.5,0.7532]
[1731024843423,0.24,2944.9,2943.5,0.7532]
[1731024843921,0.24,2944.9,2943.6,0.5170709]
[1731024843922,0.55,2944.8,2943.6,0.5170709]
[1731024844125,0.55,2944.8,2943.8,0.01]
[1731024844424,0.55,2944.8,2943.6,0.7487335]
[1731024844625,0.55,2944.8,2943.6,0.5070709]
[1731024846133,0.24,2944.9,2943.6,0.5070709]
[1731024846134,0.55,2944.9,2943.7,0.7627]
[1731024846298,0.1368828,2945.0,2944.3,0.7627]
[1731024846602,0.1368828,2945.0,2944.5,0.01]
[1731024846806,0.1368828,2945.0,2944.3,0.7627]
[1731024847525,0.1368828,2945.0,2944.9,0.7727]
[1731024848496,0.005,2946.5,2944.9,0.7727]
[1731024848826,0.005,2946.5,2945.3,0.8051]
[1731024849231,0.3768,2946.4,2945.3,0.8051]
[1731024849437,0.4367675,2946.3,2945.3,0.8051]
[1731024849643,3.98587496,2946.1,2944.8,0.8051]
[1731024849946,0.55,2946.0,2944.8,0.8051]
[1731024850093,0.55,2946.0,2944.8,1.35050423]
[1731024850305,0.55,2946.0,2944.9,0.55540423]